{"text_format":"1","workbook":"xlsx","n_sheets":5,"sheets":["Kalendars","BPS_Data","MaksStav 1","Tiesibas","Formats"],"not_rendered":{"charts":0,"images":0,"macros":1,"external_links":2,"defined_names":15,"comments":1,"pivot_tables":0},"unopened":[],"bounds":{"document_bytes":16777216,"sheet_cells":100000,"rows_first":2000,"rows_last":500,"rows_between":2000,"halvings":0,"cell_chars":16384,"cell_head_chars":4096},"cells_cut":0,"cells_raw":0,"read":"whole","date_system":"1900"}

{"sheet":"Kalendars","index":0,"n_rows":10,"n_cols":28,"rows_kept":10,"cut":false,"hidden":false,"merged":[]}
[]
[]
[null,"API","Firma","Deklaracijas","2025-01-31",{"$f":"DATE(YEAR(E3),MONTH(E3)+2,0)","v":"2025-02-28"},{"$f":"DATE(YEAR(F3),MONTH(F3)+2,0)","v":"2025-03-31"},"2025-04-30","2025-05-31","2025-06-30","2025-07-31","2025-08-31","2025-09-30","2025-10-31","2025-11-30","2025-12-31","2026-01-31",{"$f":"DATE(YEAR(Q3),MONTH(Q3)+2,0)","v":"2026-02-28"},{"$f":"DATE(YEAR(R3),MONTH(R3)+2,0)","v":"2026-03-31"},"2026-04-30","2026-05-31","2026-06-30","2026-07-31","2026-08-31","2026-09-30","2026-10-31","2026-11-30","2026-12-31"]
[null,"edfLogin;edsPasswors;edsAPI","UZ","Gada pārskats","n","n","n","n","n","n","n","n","n","n","n",{"$f":"COUNTIFS(BPS_Data!$A:$A,$C$4,BPS_Data!$C:$C,$D4,BPS_Data!$E:$E,P$3)","v":0},"n","n","n","n","n","n","n","n","n","n","n",{"$f":"COUNTIFS(BPS_Data!$A:$A,$C$4,BPS_Data!$C:$C,$D4,BPS_Data!$E:$E,AB$3)","v":0}]
[null,null,"UZ","Paziņojums par fiziskajai personai izmaksātajām summām - gada","n","n","n","n","n","n","n","n","n","n","n",{"$f":"COUNTIFS(BPS_Data!$A:$A,$C$4,BPS_Data!$C:$C,$D5,BPS_Data!$E:$E,P$3)","v":0},"n","n","n","n","n","n","n","n","n","n","n",{"$f":"COUNTIFS(BPS_Data!$A:$A,$C$4,BPS_Data!$C:$C,$D5,BPS_Data!$E:$E,AB$3)","v":0}]
[null,null,"UZ","UIN pārskats par nerezidenta gūtajiem ienākumiem un samaksāto nodokli LR","n","n","n","n","n","n","n","n","n","n","n","!","n","n","n","n","n","n","n","n","n","n","n",{"$f":"COUNTIFS(BPS_Data!$A:$A,$C$4,BPS_Data!$C:$C,$D6,BPS_Data!$E:$E,AB$3)","v":0}]
[null,null,"UZ","Uzņēmuma ienākuma nodokļa deklarācija","!","!","!","!","!","!","!","!","!","!","!",{"$f":"COUNTIFS(BPS_Data!$A:$A,$C$4,BPS_Data!$C:$C,$D7,BPS_Data!$E:$E,P$3)","v":0},"!","!","!","!","!","!","!","!","!","!","!",{"$f":"COUNTIFS(BPS_Data!$A:$A,$C$4,BPS_Data!$C:$C,$D7,BPS_Data!$E:$E,AB$3)","v":0}]
[null,null,"UZ","PVN mēneša deklarācija",{"$f":"COUNTIFS(BPS_Data!$A:$A,$C$4,BPS_Data!$C:$C,$D8,BPS_Data!$E:$E,E$3)","v":0},{"$f":"COUNTIFS(BPS_Data!$A:$A,$C$4,BPS_Data!$C:$C,$D8,BPS_Data!$E:$E,F$3)","v":0},{"$f":"COUNTIFS(BPS_Data!$A:$A,$C$4,BPS_Data!$C:$C,$D8,BPS_Data!$E:$E,G$3)","v":0},{"$f":"COUNTIFS(BPS_Data!$A:$A,$C$4,BPS_Data!$C:$C,$D8,BPS_Data!$E:$E,H$3)","v":0},{"$f":"COUNTIFS(BPS_Data!$A:$A,$C$4,BPS_Data!$C:$C,$D8,BPS_Data!$E:$E,I$3)","v":0},{"$f":"COUNTIFS(BPS_Data!$A:$A,$C$4,BPS_Data!$C:$C,$D8,BPS_Data!$E:$E,J$3)","v":0},{"$f":"COUNTIFS(BPS_Data!$A:$A,$C$4,BPS_Data!$C:$C,$D8,BPS_Data!$E:$E,K$3)","v":0},{"$f":"COUNTIFS(BPS_Data!$A:$A,$C$4,BPS_Data!$C:$C,$D8,BPS_Data!$E:$E,L$3)","v":0},{"$f":"COUNTIFS(BPS_Data!$A:$A,$C$4,BPS_Data!$C:$C,$D8,BPS_Data!$E:$E,M$3)","v":0},{"$f":"COUNTIFS(BPS_Data!$A:$A,$C$4,BPS_Data!$C:$C,$D8,BPS_Data!$E:$E,N$3)","v":0},{"$f":"COUNTIFS(BPS_Data!$A:$A,$C$4,BPS_Data!$C:$C,$D8,BPS_Data!$E:$E,O$3)","v":0},{"$f":"COUNTIFS(BPS_Data!$A:$A,$C$4,BPS_Data!$C:$C,$D8,BPS_Data!$E:$E,P$3)","v":0},{"$f":"COUNTIFS(BPS_Data!$A:$A,$C$4,BPS_Data!$C:$C,$D8,BPS_Data!$E:$E,Q$3)","v":0},{"$f":"COUNTIFS(BPS_Data!$A:$A,$C$4,BPS_Data!$C:$C,$D8,BPS_Data!$E:$E,R$3)","v":0},{"$f":"COUNTIFS(BPS_Data!$A:$A,$C$4,BPS_Data!$C:$C,$D8,BPS_Data!$E:$E,S$3)","v":0},{"$f":"COUNTIFS(BPS_Data!$A:$A,$C$4,BPS_Data!$C:$C,$D8,BPS_Data!$E:$E,T$3)","v":0},{"$f":"COUNTIFS(BPS_Data!$A:$A,$C$4,BPS_Data!$C:$C,$D8,BPS_Data!$E:$E,U$3)","v":0},{"$f":"COUNTIFS(BPS_Data!$A:$A,$C$4,BPS_Data!$C:$C,$D8,BPS_Data!$E:$E,V$3)","v":0},{"$f":"COUNTIFS(BPS_Data!$A:$A,$C$4,BPS_Data!$C:$C,$D8,BPS_Data!$E:$E,W$3)","v":0},{"$f":"COUNTIFS(BPS_Data!$A:$A,$C$4,BPS_Data!$C:$C,$D8,BPS_Data!$E:$E,X$3)","v":0},{"$f":"COUNTIFS(BPS_Data!$A:$A,$C$4,BPS_Data!$C:$C,$D8,BPS_Data!$E:$E,Y$3)","v":0},{"$f":"COUNTIFS(BPS_Data!$A:$A,$C$4,BPS_Data!$C:$C,$D8,BPS_Data!$E:$E,Z$3)","v":0},{"$f":"COUNTIFS(BPS_Data!$A:$A,$C$4,BPS_Data!$C:$C,$D8,BPS_Data!$E:$E,AA$3)","v":0},{"$f":"COUNTIFS(BPS_Data!$A:$A,$C$4,BPS_Data!$C:$C,$D8,BPS_Data!$E:$E,AB$3)","v":0}]
[null,null,"UZ","Darba devēja ziņojums",{"$f":"COUNTIFS(BPS_Data!$A:$A,$C$4,BPS_Data!$C:$C,$D9,BPS_Data!$E:$E,E$3)","v":0},{"$f":"COUNTIFS(BPS_Data!$A:$A,$C$4,BPS_Data!$C:$C,$D9,BPS_Data!$E:$E,F$3)","v":0},{"$f":"COUNTIFS(BPS_Data!$A:$A,$C$4,BPS_Data!$C:$C,$D9,BPS_Data!$E:$E,G$3)","v":0},{"$f":"COUNTIFS(BPS_Data!$A:$A,$C$4,BPS_Data!$C:$C,$D9,BPS_Data!$E:$E,H$3)","v":0},{"$f":"COUNTIFS(BPS_Data!$A:$A,$C$4,BPS_Data!$C:$C,$D9,BPS_Data!$E:$E,I$3)","v":0},{"$f":"COUNTIFS(BPS_Data!$A:$A,$C$4,BPS_Data!$C:$C,$D9,BPS_Data!$E:$E,J$3)","v":0},{"$f":"COUNTIFS(BPS_Data!$A:$A,$C$4,BPS_Data!$C:$C,$D9,BPS_Data!$E:$E,K$3)","v":0},{"$f":"COUNTIFS(BPS_Data!$A:$A,$C$4,BPS_Data!$C:$C,$D9,BPS_Data!$E:$E,L$3)","v":0},{"$f":"COUNTIFS(BPS_Data!$A:$A,$C$4,BPS_Data!$C:$C,$D9,BPS_Data!$E:$E,M$3)","v":0},{"$f":"COUNTIFS(BPS_Data!$A:$A,$C$4,BPS_Data!$C:$C,$D9,BPS_Data!$E:$E,N$3)","v":0},{"$f":"COUNTIFS(BPS_Data!$A:$A,$C$4,BPS_Data!$C:$C,$D9,BPS_Data!$E:$E,O$3)","v":0},{"$f":"COUNTIFS(BPS_Data!$A:$A,$C$4,BPS_Data!$C:$C,$D9,BPS_Data!$E:$E,P$3)","v":0},{"$f":"COUNTIFS(BPS_Data!$A:$A,$C$4,BPS_Data!$C:$C,$D9,BPS_Data!$E:$E,Q$3)","v":0},{"$f":"COUNTIFS(BPS_Data!$A:$A,$C$4,BPS_Data!$C:$C,$D9,BPS_Data!$E:$E,R$3)","v":0},{"$f":"COUNTIFS(BPS_Data!$A:$A,$C$4,BPS_Data!$C:$C,$D9,BPS_Data!$E:$E,S$3)","v":0},{"$f":"COUNTIFS(BPS_Data!$A:$A,$C$4,BPS_Data!$C:$C,$D9,BPS_Data!$E:$E,T$3)","v":0},{"$f":"COUNTIFS(BPS_Data!$A:$A,$C$4,BPS_Data!$C:$C,$D9,BPS_Data!$E:$E,U$3)","v":0},{"$f":"COUNTIFS(BPS_Data!$A:$A,$C$4,BPS_Data!$C:$C,$D9,BPS_Data!$E:$E,V$3)","v":0},{"$f":"COUNTIFS(BPS_Data!$A:$A,$C$4,BPS_Data!$C:$C,$D9,BPS_Data!$E:$E,W$3)","v":0},{"$f":"COUNTIFS(BPS_Data!$A:$A,$C$4,BPS_Data!$C:$C,$D9,BPS_Data!$E:$E,X$3)","v":0},{"$f":"COUNTIFS(BPS_Data!$A:$A,$C$4,BPS_Data!$C:$C,$D9,BPS_Data!$E:$E,Y$3)","v":0},{"$f":"COUNTIFS(BPS_Data!$A:$A,$C$4,BPS_Data!$C:$C,$D9,BPS_Data!$E:$E,Z$3)","v":0},{"$f":"COUNTIFS(BPS_Data!$A:$A,$C$4,BPS_Data!$C:$C,$D9,BPS_Data!$E:$E,AA$3)","v":0},{"$f":"COUNTIFS(BPS_Data!$A:$A,$C$4,BPS_Data!$C:$C,$D9,BPS_Data!$E:$E,AB$3)","v":0}]
[null,null,"UZ","Paziņojums par fiziskajai personai izmaksātajām summām",{"$f":"COUNTIFS(BPS_Data!$A:$A,$C$4,BPS_Data!$C:$C,$D10,BPS_Data!$E:$E,E$3)","v":0},{"$f":"COUNTIFS(BPS_Data!$A:$A,$C$4,BPS_Data!$C:$C,$D10,BPS_Data!$E:$E,F$3)","v":0},{"$f":"COUNTIFS(BPS_Data!$A:$A,$C$4,BPS_Data!$C:$C,$D10,BPS_Data!$E:$E,G$3)","v":0},{"$f":"COUNTIFS(BPS_Data!$A:$A,$C$4,BPS_Data!$C:$C,$D10,BPS_Data!$E:$E,H$3)","v":0},{"$f":"COUNTIFS(BPS_Data!$A:$A,$C$4,BPS_Data!$C:$C,$D10,BPS_Data!$E:$E,I$3)","v":0},{"$f":"COUNTIFS(BPS_Data!$A:$A,$C$4,BPS_Data!$C:$C,$D10,BPS_Data!$E:$E,J$3)","v":0},{"$f":"COUNTIFS(BPS_Data!$A:$A,$C$4,BPS_Data!$C:$C,$D10,BPS_Data!$E:$E,K$3)","v":0},{"$f":"COUNTIFS(BPS_Data!$A:$A,$C$4,BPS_Data!$C:$C,$D10,BPS_Data!$E:$E,L$3)","v":0},"n","n","n","n","!","!","!","!","!","!","!","!","!","!","!",{"$f":"COUNTIFS(BPS_Data!$A:$A,$C$4,BPS_Data!$C:$C,$D10,BPS_Data!$E:$E,AB$3)","v":0}]

{"sheet":"BPS_Data","index":1,"n_rows":1,"n_cols":7,"rows_kept":1,"cut":false,"hidden":true,"merged":[]}
["Firma","Saistības \ndokuments","Dokumenta veids","Periods\nno","Periods\nlīdz","Aprēķināts (-), \nsamazināts (+)","Parāds (-),\npārmaksa (+)"]

{"sheet":"MaksStav 1","index":2,"n_rows":18,"n_cols":7,"rows_kept":18,"cut":false,"hidden":false,"merged":[]}
[]
[]
[null,null,"edfLogin;edsPasswors;edsAPI","StavUz","Neatt.iemaks.","Apr.nāk.maks.","Parads"]
[null,null,null,"2025-12-31"]
[]
[null,null,"Nodokļa veids","Pamat\nsumma","Nokavējuma \nnauda","Soda \nnauda","Parāds (-), \npārmaksa (+)"]
[null,null,"Kopā",{"$f":"SUM(D8:D16)","v":0},{"$f":"SUM(E8:E16)","v":0},0,0]
[]
[]
[]
[]
[null,null,"Uzņēmumu ienākuma nodoklis",0,0,0,0]
[]
[]
[]
[]
[]
[null,"Saistības \ndokuments","Dokumenta veids","Periods\nno","Periods\nlīdz","Aprēķināts (-), \nsamazināts (+)","Parāds (-),\npārmaksa (+)"]

{"sheet":"Tiesibas","index":3,"n_rows":18,"n_cols":15,"rows_kept":18,"cut":false,"hidden":true,"merged":[]}
[]
[null,null,null,"DatumsNo","2025-09-09",null,null,"TisWbName","ThisWbCustId","RN","ActivationDate","CompName/Path","Processor/HddSerialId","PROCESSOR_REVISION","USERNAME"]
[null,null,null,"DatumsLidz","2025-09-20",null,null,"KLND",1,25,"2020-09-09","-","-","-","-"]
[null,null,null,"Skaitītājs (demo versijai)"]
[]
[null,null,null,"ThisWbName","KLND"]
[null,null,null,"ThisWbCustId",1]
[null,null,null,"Limenis","D"]
[]
[null,null,null,"Nesakonfigurētas tiesības!"]
[null,null,null,"Nesakonfigurētas tiesības versijai!"]
[null,null,null,"Versijas periods ir beidzies!"]
[null,null,null,"Versijas apstrādes uzņēmuma RegNr neatbilst definētam!"]
[null,null,null,"Izvelētais RegNr nav definēts šajā versijā!"]
[null,null,null,"Lūdzu aizpildiet reģistrācijas numuru!"]
[null,null,null,"Versijas Importa/Eksporta skaits sasniedza 20!"]
[null,null,null,"Lūdzu veikt faila aktivāciju uz lapas \"Instrukcija\"!"]
[null,null,null,"Fails jau ir aktivizēts šim datoram un lietotājam!"]

{"sheet":"Formats","index":4,"n_rows":1,"n_cols":1,"rows_kept":1,"cut":false,"hidden":true,"merged":[]}
["BPS"]